[Event "Titled Tuesday Blitz November 01 Early 2022"]
[White "Krishnan, Varun"]
[Black "Grot, Blazej"]
[WhiteFideId "5054508"]
[BlackFideId "21835845"]
[WhiteElo "2534"]
[BlackElo "1739"]
[Result "0-1"]
[Round "02"]
[TimeControl "180+1"]
[Date "2022.11.02"]
[WhiteClock "0:00:01"]
[BlackClock "0:00:08"]

1. d4 {[%clk 0:03:00]}  Nf6 {[%clk 0:02:58]} 2. c4 {[%clk 0:03:00]}  e6 {[%clk 0:02:58]} 3. Nf3 {[%clk 0:02:59]}  d5 {[%clk 0:02:58]} 4. Nc3 {[%clk 0:02:58]}  c6 {[%clk 0:02:59]} 5. e3 {[%clk 0:02:55]}  Nbd7 {[%clk 0:02:58]} 6. Qc2 {[%clk 0:02:53]}  Be7 {[%clk 0:02:58]} 7. Be2 {[%clk 0:02:51]}  O-O {[%clk 0:02:58]} 8. O-O {[%clk 0:02:51]}  dxc4 {[%clk 0:02:58]} 9. Bxc4 {[%clk 0:02:52]}  b5 {[%clk 0:02:58]} 10. Be2 {[%clk 0:02:53]}  a6 {[%clk 0:02:58]} 11. e4 {[%clk 0:02:51]}  Bb7 {[%clk 0:02:58]} 12. a3 {[%clk 0:02:48]}  c5 {[%clk 0:02:55]} 13. Rd1 {[%clk 0:02:44]}  cxd4 {[%clk 0:02:54]} 14. Nxd4 {[%clk 0:02:43]}  Rc8 {[%clk 0:02:52]} 15. e5 {[%clk 0:02:37]}  Nd5 {[%clk 0:02:50]} 16. Nf3 {[%clk 0:02:27]}  Nxc3 {[%clk 0:02:46]} 17. bxc3 {[%clk 0:02:27]}  Qc7 {[%clk 0:02:46]} 18. Bf4 {[%clk 0:02:16]}  h6 {[%clk 0:02:45]} 19. a4 {[%clk 0:02:10]}  b4 {[%clk 0:02:45]} 20. Qd2 {[%clk 0:02:03]}  Rfd8 {[%clk 0:02:33]} 21. cxb4 {[%clk 0:02:03]}  Nxe5 {[%clk 0:02:28]} 22. Qe3 {[%clk 0:01:53]}  Nxf3+ {[%clk 0:02:27]} 23. Bxf3 {[%clk 0:01:52]}  Rxd1+ {[%clk 0:02:05]} 24. Rxd1 {[%clk 0:01:50]}  Qc2 {[%clk 0:02:04]} 25. h3 {[%clk 0:01:36]}  Bxf3 {[%clk 0:02:01]} 26. Qxf3 {[%clk 0:01:37]}  Bxb4 {[%clk 0:01:59]} 27. Rd7 {[%clk 0:01:26]}  Qc6 {[%clk 0:01:38]} 28. Qd3 {[%clk 0:01:19]}  Qxa4 {[%clk 0:01:17]} 29. Kh2 {[%clk 0:01:07]}  Bf8 {[%clk 0:01:13]} 30. Bg3 {[%clk 0:00:55]}  Qb5 {[%clk 0:01:02]} 31. Qd1 {[%clk 0:00:54]}  a5 {[%clk 0:00:59]} 32. Ra7 {[%clk 0:00:48]}  Bc5 {[%clk 0:00:48]} 33. Rd7 {[%clk 0:00:48]}  a4 {[%clk 0:00:43]} 34. Be5 {[%clk 0:00:35]}  Bf8 {[%clk 0:00:38]} 35. Ba1 {[%clk 0:00:32]}  a3 {[%clk 0:00:35]} 36. Rd3 {[%clk 0:00:22]}  Qb8+ {[%clk 0:00:32]} 37. g3 {[%clk 0:00:14]}  Qa7 {[%clk 0:00:32]} 38. Bd4 {[%clk 0:00:11]}  Qb7 {[%clk 0:00:30]} 39. Re3 {[%clk 0:00:04]}  Rd8 {[%clk 0:00:27]} 40. Rd3 {[%clk 0:00:05]}  Qb8 {[%clk 0:00:20]} 41. Ba1 {[%clk 0:00:04]}  Rxd3 {[%clk 0:00:19]} 42. Qxd3 {[%clk 0:00:05]}  Qb6 {[%clk 0:00:19]} 43. Qe2 {[%clk 0:00:04]}  Qc5 {[%clk 0:00:18]} 44. h4 {[%clk 0:00:03]}  Qc1 {[%clk 0:00:18]} 45. Qe5 {[%clk 0:00:02]}  Qc2 {[%clk 0:00:16]} 46. Kg2 {[%clk 0:00:01]}  Qc6+ {[%clk 0:00:15]} 47. Kh2 {[%clk 0:00:01]}  Qc2 {[%clk 0:00:16]} 48. Kg2 {[%clk 0:00:01]}  a2 {[%clk 0:00:17]} 49. Kh2 {[%clk 0:00:01]}  Qb1 {[%clk 0:00:17]} 50. Kg2 {[%clk 0:00:01]}  h5 {[%clk 0:00:16]} 51. Qd4 {[%clk 0:00:01]}  Bc5 {[%clk 0:00:15]} 52. Qc3 {[%clk 0:00:01]}  Bf8 {[%clk 0:00:15]} 53. Qd4 {[%clk 0:00:01]}  Qc2 {[%clk 0:00:14]} 54. Qe5 {[%clk 0:00:01]}  Qc4 {[%clk 0:00:10]} 55. Qb2 {[%clk 0:00:01]}  Qd5+ {[%clk 0:00:10]} 56. Kh2 {[%clk 0:00:01]}  Qc5 {[%clk 0:00:08]} 0-1


[Site "https://www.chess.com"]

[Event "Titled Tuesday Blitz November 01 Early 2022"]
[White "Kustar, Sandor"]
[Black "Orozbaev, Eldiar"]
[WhiteFideId "702900"]
[BlackFideId "13802240"]
[WhiteElo "2375"]
[BlackElo "2244"]
[Result "1/2-1/2"]
[Round "02"]
[TimeControl "180+1"]
[Date "2022.11.02"]
[WhiteClock "0:00:11"]
[BlackClock "0:00:29"]

1. Nf3 {[%clk 0:03:00]}  d6 {[%clk 0:02:59]} 2. d4 {[%clk 0:02:59]}  Nd7 {[%clk 0:02:59]} 3. c4 {[%clk 0:02:59]}  e5 {[%clk 0:02:59]} 4. Nc3 {[%clk 0:02:58]}  f5 {[%clk 0:02:59]} 5. e4 {[%clk 0:02:57]}  fxe4 {[%clk 0:02:58]} 6. Nxe4 {[%clk 0:02:56]}  Ngf6 {[%clk 0:02:59]} 7. Neg5 {[%clk 0:02:31]}  exd4 {[%clk 0:02:46]} 8. Nxd4 {[%clk 0:02:27]}  Nc5 {[%clk 0:02:43]} 9. Qe2+ {[%clk 0:02:18]}  Be7 {[%clk 0:02:40]} 10. b4 {[%clk 0:02:07]}  h6 {[%clk 0:02:29]} 11. Nge6 {[%clk 0:01:37]}  Nxe6 {[%clk 0:02:28]} 12. Nxe6 {[%clk 0:01:37]}  Bxe6 {[%clk 0:02:29]} 13. Qxe6 {[%clk 0:01:38]}  Qd7 {[%clk 0:02:28]} 14. Qxd7+ {[%clk 0:01:34]}  Kxd7 {[%clk 0:02:29]} 15. Bd3 {[%clk 0:01:33]}  d5 {[%clk 0:02:28]} 16. Bf5+ {[%clk 0:01:31]}  Ke8 {[%clk 0:02:25]} 17. c5 {[%clk 0:01:18]}  a5 {[%clk 0:02:21]} 18. Bd2 {[%clk 0:00:57]}  axb4 {[%clk 0:02:21]} 19. Bxb4 {[%clk 0:00:57]}  Kf7 {[%clk 0:02:19]} 20. a3 {[%clk 0:00:49]}  g6 {[%clk 0:02:05]} 21. Bd3 {[%clk 0:00:48]}  Nd7 {[%clk 0:02:04]} 22. Rc1 {[%clk 0:00:47]}  Ne5 {[%clk 0:01:59]} 23. Be2 {[%clk 0:00:47]}  d4 {[%clk 0:01:52]} 24. f4 {[%clk 0:00:41]}  Nc6 {[%clk 0:01:52]} 25. O-O {[%clk 0:00:37]}  Rad8 {[%clk 0:01:52]} 26. Rfd1 {[%clk 0:00:32]}  Bf6 {[%clk 0:01:50]} 27. Bf3 {[%clk 0:00:33]}  Rhe8 {[%clk 0:01:50]} 28. Kf2 {[%clk 0:00:32]}  Re3 {[%clk 0:01:46]} 29. Bxc6 {[%clk 0:00:18]}  bxc6 {[%clk 0:01:47]} 30. Re1 {[%clk 0:00:19]}  Rb3 {[%clk 0:01:45]} 31. Rcd1 {[%clk 0:00:18]}  d3 {[%clk 0:01:45]} 32. Kf3 {[%clk 0:00:17]}  d2+ {[%clk 0:01:45]} 33. Re3 {[%clk 0:00:17]}  Rb2 {[%clk 0:01:42]} 34. Re2 {[%clk 0:00:17]}  Rd3+ {[%clk 0:01:40]} 35. Re3 {[%clk 0:00:17]}  Rd5 {[%clk 0:01:35]} 36. Re2 {[%clk 0:00:17]}  Rb3+ {[%clk 0:01:28]} 37. Re3 {[%clk 0:00:17]}  Rxe3+ {[%clk 0:01:19]} 38. Kxe3 {[%clk 0:00:17]}  Bd4+ {[%clk 0:01:20]} 39. Ke2 {[%clk 0:00:13]}  Bxc5 {[%clk 0:01:20]} 40. Rxd2 {[%clk 0:00:14]}  Rxd2+ {[%clk 0:01:05]} 41. Kxd2 {[%clk 0:00:13]}  Bxb4+ {[%clk 0:01:05]} 42. axb4 {[%clk 0:00:13]}  Ke6 {[%clk 0:01:05]} 43. Kd3 {[%clk 0:00:13]}  Kd5 {[%clk 0:01:06]} 44. g4 {[%clk 0:00:12]}  c5 {[%clk 0:01:05]} 45. b5 {[%clk 0:00:12]}  h5 {[%clk 0:00:52]} 46. h3 {[%clk 0:00:12]}  h4 {[%clk 0:00:50]} 47. Kc3 {[%clk 0:00:11]}  Ke4 {[%clk 0:00:39]} 48. Kc4 {[%clk 0:00:11]}  Kxf4 {[%clk 0:00:40]} 49. Kxc5 {[%clk 0:00:11]}  Kg3 {[%clk 0:00:40]} 50. Kc6 {[%clk 0:00:12]}  Kxh3 {[%clk 0:00:41]} 51. Kxc7 {[%clk 0:00:13]}  Kxg4 {[%clk 0:00:40]} 52. b6 {[%clk 0:00:13]}  h3 {[%clk 0:00:41]} 53. b7 {[%clk 0:00:14]}  h2 {[%clk 0:00:41]} 54. b8=Q {[%clk 0:00:14]}  h1=Q {[%clk 0:00:42]} 55. Qb4+ {[%clk 0:00:13]}  Kf5 {[%clk 0:00:40]} 56. Qf8+ {[%clk 0:00:12]}  Kg5 {[%clk 0:00:37]} 57. Qe7+ {[%clk 0:00:12]}  Kg4 {[%clk 0:00:37]} 58. Qe6+ {[%clk 0:00:11]}  Kh5 {[%clk 0:00:36]} 59. Qe5+ {[%clk 0:00:11]}  Kg4 {[%clk 0:00:34]} 60. Qe6+ {[%clk 0:00:11]}  Kg5 {[%clk 0:00:30]} 61. Qe5+ {[%clk 0:00:11]}  Kg4 {[%clk 0:00:29]} 62. Qe6+ {[%clk 0:00:11]} 1/2-1/2


[Site "https://www.chess.com"]

[Event "Titled Tuesday Blitz November 01 Early 2022"]
[White "Kuznetsova, Olga"]
[Black "Timofeev, Artyom"]
[WhiteFideId "4191323"]
[BlackFideId "4140419"]
[WhiteElo "2134"]
[BlackElo "2579"]
[Result "0-1"]
[Round "02"]
[TimeControl "180+1"]
[Date "2022.11.02"]
[WhiteClock "0:00:14"]
[BlackClock "0:00:12"]

1. d4 {[%clk 0:03:00]}  Nf6 {[%clk 0:02:59]} 2. g3 {[%clk 0:02:59]}  d5 {[%clk 0:02:56]} 3. Bg2 {[%clk 0:02:59]}  g6 {[%clk 0:02:56]} 4. Nf3 {[%clk 0:02:59]}  Bg7 {[%clk 0:02:56]} 5. O-O {[%clk 0:03:00]}  O-O {[%clk 0:02:56]} 6. b3 {[%clk 0:02:58]}  c5 {[%clk 0:02:52]} 7. Bb2 {[%clk 0:02:58]}  cxd4 {[%clk 0:02:51]} 8. Bxd4 {[%clk 0:02:58]}  Nc6 {[%clk 0:02:51]} 9. Bb2 {[%clk 0:02:58]}  Bg4 {[%clk 0:02:49]} 10. Nbd2 {[%clk 0:02:57]}  Qc8 {[%clk 0:02:46]} 11. c4 {[%clk 0:02:53]}  Rd8 {[%clk 0:02:42]} 12. cxd5 {[%clk 0:02:52]}  Rxd5 {[%clk 0:02:42]} 13. Qc2 {[%clk 0:02:49]}  Bh3 {[%clk 0:02:36]} 14. Rfd1 {[%clk 0:02:22]}  Bxg2 {[%clk 0:02:35]} 15. Kxg2 {[%clk 0:02:22]}  Qe6 {[%clk 0:02:34]} 16. Nf1 {[%clk 0:02:19]}  h6 {[%clk 0:02:17]} 17. Rxd5 {[%clk 0:02:14]}  Nxd5 {[%clk 0:02:16]} 18. Bxg7 {[%clk 0:02:13]}  Kxg7 {[%clk 0:02:16]} 19. Rd1 {[%clk 0:02:11]}  a5 {[%clk 0:02:12]} 20. Qc4 {[%clk 0:02:04]}  Nc7 {[%clk 0:01:50]} 21. Ne3 {[%clk 0:01:52]}  Qxc4 {[%clk 0:01:42]} 22. Nxc4 {[%clk 0:01:53]}  Ne6 {[%clk 0:01:38]} 23. Rd7 {[%clk 0:01:47]}  Rb8 {[%clk 0:01:30]} 24. Nfe5 {[%clk 0:01:28]}  Nxe5 {[%clk 0:01:24]} 25. Nxe5 {[%clk 0:01:28]}  b5 {[%clk 0:01:07]} 26. Nc6 {[%clk 0:01:14]}  Rc8 {[%clk 0:01:02]} 27. Nxa5 {[%clk 0:01:00]}  Rc2 {[%clk 0:01:01]} 28. a4 {[%clk 0:00:58]}  bxa4 {[%clk 0:00:58]} 29. bxa4 {[%clk 0:00:59]}  Rxe2 {[%clk 0:00:58]} 30. Nc6 {[%clk 0:00:57]}  Ra2 {[%clk 0:00:56]} 31. a5 {[%clk 0:00:56]}  Kf6 {[%clk 0:00:54]} 32. Nxe7 {[%clk 0:00:48]}  Rxa5 {[%clk 0:00:52]} 33. Nd5+ {[%clk 0:00:48]}  Kg7 {[%clk 0:00:52]} 34. Ne3 {[%clk 0:00:48]}  Ra2 {[%clk 0:00:51]} 35. h4 {[%clk 0:00:45]}  h5 {[%clk 0:00:50]} 36. Nc4 {[%clk 0:00:42]}  Nc5 {[%clk 0:00:49]} 37. Rd2 {[%clk 0:00:39]}  Ra4 {[%clk 0:00:47]} 38. Ne5 {[%clk 0:00:39]}  Re4 {[%clk 0:00:46]} 39. Nf3 {[%clk 0:00:38]}  Re7 {[%clk 0:00:44]} 40. Rc2 {[%clk 0:00:37]}  Ne6 {[%clk 0:00:43]} 41. Rc8 {[%clk 0:00:33]}  Ra7 {[%clk 0:00:42]} 42. Rc2 {[%clk 0:00:30]}  Kf6 {[%clk 0:00:41]} 43. Re2 {[%clk 0:00:31]}  Ra5 {[%clk 0:00:40]} 44. Nd2 {[%clk 0:00:29]}  Kg7 {[%clk 0:00:38]} 45. Nf3 {[%clk 0:00:29]}  Ra3 {[%clk 0:00:37]} 46. Ne5 {[%clk 0:00:27]}  Kf6 {[%clk 0:00:29]} 47. Nc4 {[%clk 0:00:27]}  Rc3 {[%clk 0:00:27]} 48. Ne3 {[%clk 0:00:28]}  Rd3 {[%clk 0:00:28]} 49. Ra2 {[%clk 0:00:27]}  Nc5 {[%clk 0:00:26]} 50. Kf3 {[%clk 0:00:25]}  Rb3 {[%clk 0:00:25]} 51. Rc2 {[%clk 0:00:24]}  Ne6 {[%clk 0:00:25]} 52. Kg2 {[%clk 0:00:21]}  Ra3 {[%clk 0:00:24]} 53. Rb2 {[%clk 0:00:21]}  Kg7 {[%clk 0:00:23]} 54. Rd2 {[%clk 0:00:19]}  Nc5 {[%clk 0:00:23]} 55. Nd5 {[%clk 0:00:19]}  Ne4 {[%clk 0:00:22]} 56. Rc2 {[%clk 0:00:19]}  Ra5 {[%clk 0:00:20]} 57. Nf4 {[%clk 0:00:19]}  Nd6 {[%clk 0:00:18]} 58. Rd2 {[%clk 0:00:19]}  Nf5 {[%clk 0:00:18]} 59. Kf3 {[%clk 0:00:18]}  Ra3+ {[%clk 0:00:17]} 60. Kg2 {[%clk 0:00:19]}  Kh6 {[%clk 0:00:17]} 61. Rb2 {[%clk 0:00:19]}  Ra4 {[%clk 0:00:17]} 62. Rc2 {[%clk 0:00:18]}  Nxh4+ {[%clk 0:00:17]} 63. Kh3 {[%clk 0:00:15]}  Nf5 {[%clk 0:00:17]} 64. Rc8 {[%clk 0:00:14]}  Kg7 {[%clk 0:00:16]} 65. Rc7 {[%clk 0:00:14]}  Ra2 {[%clk 0:00:16]} 66. Kg2 {[%clk 0:00:15]}  Ne3+ {[%clk 0:00:15]} 67. Kf3 {[%clk 0:00:15]}  Ng4 {[%clk 0:00:15]} 68. Nd3 {[%clk 0:00:15]}  Rd2 {[%clk 0:00:15]} 69. Ke4 {[%clk 0:00:13]}  Nxf2+ {[%clk 0:00:14]} 70. Nxf2 {[%clk 0:00:13]}  Rxf2 {[%clk 0:00:14]} 71. Rc3 {[%clk 0:00:14]}  Rf6 {[%clk 0:00:13]} 72. Ke3 {[%clk 0:00:14]}  g5 {[%clk 0:00:13]} 73. Rc5 {[%clk 0:00:14]}  Kg6 {[%clk 0:00:14]} 74. Rc8 {[%clk 0:00:15]}  Kf5 {[%clk 0:00:12]} 75. Rh8 {[%clk 0:00:15]}  Kg4 {[%clk 0:00:12]} 76. Rh7 {[%clk 0:00:14]}  Rf3+ {[%clk 0:00:12]} 77. Ke4 {[%clk 0:00:14]}  Rxg3 {[%clk 0:00:11]} 78. Rxf7 {[%clk 0:00:14]}  h4 {[%clk 0:00:12]} 79. Rf1 {[%clk 0:00:14]}  h3 {[%clk 0:00:12]} 80. Rh1 {[%clk 0:00:14]}  Rg2 {[%clk 0:00:12]} 81. Ke3 {[%clk 0:00:15]}  Kg3 {[%clk 0:00:12]} 82. Ra1 {[%clk 0:00:14]}  g4 {[%clk 0:00:12]} 83. Ke4 {[%clk 0:00:14]}  h2 {[%clk 0:00:12]} 84. Ra3+ {[%clk 0:00:15]}  Kh4 {[%clk 0:00:12]} 85. Ra8 {[%clk 0:00:14]}  Rg1 {[%clk 0:00:12]} 86. Kf4 {[%clk 0:00:14]}  Rf1+ {[%clk 0:00:12]} 87. Ke3 {[%clk 0:00:15]}  h1=Q {[%clk 0:00:12]} 88. Rh8+ {[%clk 0:00:14]}  Kg3 {[%clk 0:00:12]} 89. Rxh1 {[%clk 0:00:14]}  Rxh1 {[%clk 0:00:12]} 0-1


[Site "https://www.chess.com"]

[Event "Titled Tuesday Blitz November 01 Early 2022"]
[White "Lawson, Eric"]
[Black "Szente Varga, Fruzsina"]
[WhiteFideId "2604116"]
[BlackFideId "712264"]
[WhiteElo "2538"]
[BlackElo "1994"]
[Result "1/2-1/2"]
[Round "02"]
[TimeControl "180+1"]
[Date "2022.11.02"]
[WhiteClock "0:00:12"]
[BlackClock "0:00:14"]

1. e4 {[%clk 0:02:57]}  e5 {[%clk 0:02:45]} 2. Nf3 {[%clk 0:02:56]}  Nc6 {[%clk 0:02:37]} 3. Nc3 {[%clk 0:02:55]}  Nf6 {[%clk 0:02:35]} 4. g3 {[%clk 0:02:51]}  Bb4 {[%clk 0:02:32]} 5. Bg2 {[%clk 0:02:24]}  O-O {[%clk 0:02:31]} 6. O-O {[%clk 0:02:22]}  d6 {[%clk 0:01:39]} 7. Re1 {[%clk 0:02:03]}  Bg4 {[%clk 0:01:36]} 8. h3 {[%clk 0:02:02]}  Bxf3 {[%clk 0:01:06]} 9. Qxf3 {[%clk 0:02:02]}  Nd4 {[%clk 0:01:05]} 10. Qd1 {[%clk 0:02:02]}  c6 {[%clk 0:01:00]} 11. Ne2 {[%clk 0:01:46]}  Bc5 {[%clk 0:00:47]} 12. c3 {[%clk 0:01:15]}  Nxe2+ {[%clk 0:00:40]} 13. Rxe2 {[%clk 0:01:09]}  Re8 {[%clk 0:00:22]} 14. d4 {[%clk 0:01:07]}  exd4 {[%clk 0:00:22]} 15. cxd4 {[%clk 0:01:08]}  Bb6 {[%clk 0:00:23]} 16. Qd3 {[%clk 0:00:47]}  Qd7 {[%clk 0:00:23]} 17. Bg5 {[%clk 0:00:46]}  Qe6 {[%clk 0:00:19]} 18. Kh2 {[%clk 0:00:40]}  h6 {[%clk 0:00:19]} 19. Bf4 {[%clk 0:00:39]}  d5 {[%clk 0:00:18]} 20. e5 {[%clk 0:00:38]}  Nd7 {[%clk 0:00:19]} 21. b4 {[%clk 0:00:34]}  a5 {[%clk 0:00:19]} 22. b5 {[%clk 0:00:34]}  c5 {[%clk 0:00:19]} 23. dxc5 {[%clk 0:00:33]}  Nxc5 {[%clk 0:00:19]} 24. Qxd5 {[%clk 0:00:33]}  Qxd5 {[%clk 0:00:18]} 25. Bxd5 {[%clk 0:00:33]}  Re7 {[%clk 0:00:19]} 26. Be3 {[%clk 0:00:22]}  Rae8 {[%clk 0:00:19]} 27. f4 {[%clk 0:00:21]}  Na4 {[%clk 0:00:18]} 28. Bxb6 {[%clk 0:00:18]}  Nxb6 {[%clk 0:00:19]} 29. Bf3 {[%clk 0:00:17]}  f6 {[%clk 0:00:18]} 30. Rae1 {[%clk 0:00:15]}  fxe5 {[%clk 0:00:18]} 31. fxe5 {[%clk 0:00:15]}  Kh7 {[%clk 0:00:18]} 32. h4 {[%clk 0:00:15]}  Nc4 {[%clk 0:00:17]} 33. e6 {[%clk 0:00:14]}  Nd6 {[%clk 0:00:17]} 34. b6 {[%clk 0:00:14]}  g6 {[%clk 0:00:17]} 35. h5 {[%clk 0:00:14]}  gxh5 {[%clk 0:00:17]} 36. Re5 {[%clk 0:00:15]}  Kg7 {[%clk 0:00:17]} 37. Bxh5 {[%clk 0:00:15]}  Rf8 {[%clk 0:00:18]} 38. Rxa5 {[%clk 0:00:15]}  Rf2+ {[%clk 0:00:17]} 39. Kh3 {[%clk 0:00:16]}  Rb2 {[%clk 0:00:17]} 40. Rd5 {[%clk 0:00:13]}  Rxb6 {[%clk 0:00:17]} 41. Bg4 {[%clk 0:00:10]}  Kf6 {[%clk 0:00:16]} 42. Rf1+ {[%clk 0:00:10]}  Kg6 {[%clk 0:00:16]} 43. Rfd1 {[%clk 0:00:10]}  Ne4 {[%clk 0:00:16]} 44. Rd7 {[%clk 0:00:10]}  Nf2+ {[%clk 0:00:10]} 45. Kg2 {[%clk 0:00:11]}  Nxg4 {[%clk 0:00:09]} 46. Rxe7 {[%clk 0:00:07]}  Ne3+ {[%clk 0:00:10]} 47. Kf3 {[%clk 0:00:07]}  Nxd1 {[%clk 0:00:10]} 48. Rd7 {[%clk 0:00:07]}  Kf6 {[%clk 0:00:10]} 49. Rxd1 {[%clk 0:00:06]}  Rxe6 {[%clk 0:00:09]} 50. Rd4 {[%clk 0:00:06]}  b6 {[%clk 0:00:10]} 51. a4 {[%clk 0:00:06]}  Kg6 {[%clk 0:00:11]} 52. Rh4 {[%clk 0:00:07]}  h5 {[%clk 0:00:11]} 53. Rb4 {[%clk 0:00:07]}  Kg5 {[%clk 0:00:11]} 54. Rb5+ {[%clk 0:00:07]}  Kg6 {[%clk 0:00:12]} 55. Kf4 {[%clk 0:00:07]}  Rf6+ {[%clk 0:00:12]} 56. Ke4 {[%clk 0:00:08]}  Re6+ {[%clk 0:00:13]} 57. Re5 {[%clk 0:00:08]}  Rc6 {[%clk 0:00:13]} 58. Kd5 {[%clk 0:00:07]}  Rc3 {[%clk 0:00:13]} 59. Re6+ {[%clk 0:00:07]}  Kg5 {[%clk 0:00:13]} 60. Rxb6 {[%clk 0:00:08]}  Rxg3 {[%clk 0:00:13]} 61. a5 {[%clk 0:00:09]}  Ra3 {[%clk 0:00:13]} 62. Rb5 {[%clk 0:00:08]}  Kg4 {[%clk 0:00:13]} 63. Kc6 {[%clk 0:00:09]}  h4 {[%clk 0:00:14]} 64. Kb6 {[%clk 0:00:10]}  h3 {[%clk 0:00:14]} 65. Rb2 {[%clk 0:00:10]}  Kg3 {[%clk 0:00:13]} 66. a6 {[%clk 0:00:11]}  h2 {[%clk 0:00:13]} 67. Rxh2 {[%clk 0:00:11]}  Kxh2 {[%clk 0:00:13]} 68. a7 {[%clk 0:00:11]}  Rxa7 {[%clk 0:00:14]} 69. Kxa7 {[%clk 0:00:12]} 1/2-1/2


[Site "https://www.chess.com"]

[Event "Titled Tuesday Blitz November 01 Early 2022"]
[White "Lazavik, Denis"]
[Black "Agasarov, Benik"]
[WhiteFideId "13515110"]
[BlackFideId "13314823"]
[WhiteElo "2437"]
[BlackElo "2152"]
[Result "1-0"]
[Round "02"]
[TimeControl "180+1"]
[Date "2022.11.01"]
[WhiteClock "0:00:28"]
[BlackClock "0:00:51"]

1. d4 {[%clk 0:03:00]}  Nf6 {[%clk 0:03:00]} 2. c4 {[%clk 0:03:01]}  e6 {[%clk 0:03:00]} 3. Nf3 {[%clk 0:03:01]}  d5 {[%clk 0:02:59]} 4. g3 {[%clk 0:03:02]}  Be7 {[%clk 0:02:59]} 5. Bg2 {[%clk 0:03:02]}  O-O {[%clk 0:03:00]} 6. O-O {[%clk 0:03:03]}  dxc4 {[%clk 0:03:00]} 7. Qc2 {[%clk 0:03:04]}  a6 {[%clk 0:03:00]} 8. a4 {[%clk 0:03:04]}  Bd7 {[%clk 0:03:00]} 9. Qxc4 {[%clk 0:03:01]}  Bc6 {[%clk 0:03:00]} 10. Bg5 {[%clk 0:03:01]}  Nbd7 {[%clk 0:02:45]} 11. Nc3 {[%clk 0:03:00]}  h6 {[%clk 0:02:43]} 12. Bxf6 {[%clk 0:02:59]}  Nxf6 {[%clk 0:02:44]} 13. b4 {[%clk 0:02:57]}  Bd5 {[%clk 0:02:42]} 14. Nxd5 {[%clk 0:02:56]}  exd5 {[%clk 0:02:43]} 15. Qb3 {[%clk 0:02:56]}  c6 {[%clk 0:02:42]} 16. e3 {[%clk 0:02:56]}  Bd6 {[%clk 0:02:42]} 17. Rfc1 {[%clk 0:02:52]}  Qb6 {[%clk 0:02:32]} 18. Rab1 {[%clk 0:02:50]}  Ne4 {[%clk 0:02:31]} 19. b5 {[%clk 0:02:46]}  axb5 {[%clk 0:02:28]} 20. axb5 {[%clk 0:02:47]}  Qc7 {[%clk 0:02:10]} 21. Qc2 {[%clk 0:02:35]}  Rfc8 {[%clk 0:02:05]} 22. Bh3 {[%clk 0:02:28]}  Rcb8 {[%clk 0:02:01]} 23. bxc6 {[%clk 0:02:08]}  bxc6 {[%clk 0:02:00]} 24. Rxb8+ {[%clk 0:02:08]}  Rxb8 {[%clk 0:02:00]} 25. Qxc6 {[%clk 0:01:46]}  Qxc6 {[%clk 0:02:01]} 26. Rxc6 {[%clk 0:01:46]}  Rb1+ {[%clk 0:02:00]} 27. Bf1 {[%clk 0:01:43]}  g5 {[%clk 0:01:57]} 28. Rc2 {[%clk 0:01:39]}  g4 {[%clk 0:01:45]} 29. Nh4 {[%clk 0:01:33]}  Bb4 {[%clk 0:01:39]} 30. Kg2 {[%clk 0:01:31]}  Ng5 {[%clk 0:01:34]} 31. Rc8+ {[%clk 0:01:14]}  Kg7 {[%clk 0:01:29]} 32. Nf5+ {[%clk 0:01:13]}  Kg6 {[%clk 0:01:25]} 33. Bd3 {[%clk 0:00:57]}  Rd1 {[%clk 0:01:15]} 34. Ne7+ {[%clk 0:00:47]}  Kh5 {[%clk 0:01:02]} 35. Be2 {[%clk 0:00:40]}  Rd2 {[%clk 0:00:58]} 36. Nxd5 {[%clk 0:00:39]}  Ne4 {[%clk 0:00:51]} 37. Rg8 {[%clk 0:00:28]} 1-0


[Site "https://www.chess.com"]